Cogmind - Beta 15 @@@ ROGUE MODE // 2025.09.13 @ 22:52:45 Player: McSaucyNugget Result: Destroyed by YI-UF0 with YI-UF0's Doublenader Performance ------------- Evolutions (0) 0 Regions Visited (2) 400 Robots Destroyed (28) 140 Value Destroyed (488) 488 Prototype IDs (0) 0 Alien Tech Used (0) 0 Bonus (0) 0 TOTAL SCORE: 1028 Bonus ------- None Cogmind --------- Core Integrity 0/250 Matter 254/300 Energy 123/125 System Corruption 5% Temperature Cool (0) Movement Treading (320) Ox2 Location -10/Mines Parts ------- > --- POWER (1) -------- Light Ion Engine > --- PROPULSION (2) --- Light Treads Light Treads > --- UTILITY (2) ------ Huge Storage Unit Improved Terrain Scanner > --- WEAPON (2) ------- Light Assault Rifle Light Assault Rifle > --- INVENTORY (25) --- Ion Engine Light Ion Engine Light Ion Engine Light Treads Light Treads Light Treads Wheel Wheel Improved Heat Sink Medium Matter Pod (100) Experimental Sensor Array Light Assault Rifle Light Assault Rifle Light Assault Rifle Light Assault Rifle Light Cannon Grenade Launcher Grenade Launcher Peak State ------------ > --- POWER ------------ Light Ion Engine > --- PROPULSION ------- Wheel Wheel > --- UTILITY ---------- Huge Storage Unit Improved Terrain Scanner > --- WEAPON ----------- Light Assault Rifle Light Assault Rifle > --- INVENTORY -------- Ion Engine Light Ion Engine Light Ion Engine Light Treads Light Treads Light Treads Light Treads Light Treads Light Treads Wheel Wheel Improved Heat Sink Medium Matter Pod Experimental Sensor Array Light Assault Rifle Light Assault Rifle Light Assault Rifle Light Assault Rifle Light Cannon Grenade Launcher Grenade Launcher [Rating: 12] Favorites ----------- Power Ion Engine Engine Ion Engine Propulsion Light Treads Treads Light Treads Wheel Wheel Utility Huge Storage Unit Device Improved Terrain Scanner Storage Huge Storage Unit Weapon Assault Rifle Ballistic Gun Assault Rifle Build | -11 -10 -10 ------- Run | Yrd Mat Min Slots Evolved . | . . . Power . | . . . Propulsion . | . . . Utility . | . . . Weapon . | . . . Parts Attached 19 | 6 4 9 Power 2 | . 1 1 Engine 2 | . 1 1 Core . | . . . Reactor . | . . . Propulsion 9 | 2 2 5 Treads 5 | 2 . 3 Leg . | . . . Wheel 4 | . 2 2 Hover . | . . . Flight . | . . . Utility 3 | 1 1 1 Device 1 | . . 1 Storage 2 | 1 1 . Processor . | . . . Hackware . | . . . Protection . | . . . Artifact . | . . . Weapon 5 | 3 . 2 Energy Gun . | . . . Energy Cannon . | . . . Ballistic Gun 5 | 3 . 2 Ballistic Cannon . | . . . Launcher . | . . . Special Weapon . | . . . Impact Weapon . | . . . Slashing Weapon . | . . . Piercing Weapon . | . . . Special Melee Weapon . | . . . Unidentified Prototypes . | . . . Parts Lost 9 | . 1 8 Power 1 | . . 1 Propulsion 5 | . . 5 Utility . | . . . Weapon 3 | . 1 2 Highest Loss Streak 4 | . 1 4 To Critical Strikes . | . . . Average Backups 12 | 1 8 16 Power 1 | 1 1 2 Propulsion 4 | . 2 6 Utility 1 | . 1 2 Weapon 4 | . 2 6 Tool/Special . | . . . Unused Backups 16 | . . 16 Power 3 | . . 3 Propulsion 3 | . . 3 Utility 3 | . . 3 Weapon 7 | . . 7 Tool/Special . | . . . Average Slot Usage (%) 87 | . 84 89 Engine 13 | . 13 13 Treads 13 | . 13 14 Wheel 13 | . 14 13 Device 2 | . . 5 Storage 14 | . 14 14 Ballistic Gun 27 | . 28 27 Peak Build Rating 12 | 5 7 12 Average Rating 7 | 4 6 8 On Entrance 4 | . 5 7 Naked Turns . | . . . Heaviest Build 89 | 9 89 89 Greatest Support 40 | 40 40 40 Greatest Overweight (x) 8 | . 8 8 Average Overweight (x) 3 | . 3 3 Largest Inventory Capacity 25 | 8 25 25 Average Capacity 23 | 6 23 25 Most Carried 21 | 3 16 21 Average Carried 12 | 1 8 16 Final Capacity 25 | 8 25 25 Final Carried 18 | 3 16 18 Class Distribution -------------------- 100% | Mutant Dominant Class ---------------- Mutant | -10/Materials Mutant | -10/Mines Resources | -11 -10 -10 ----------- Run | Yrd Mat Min Matter Collected 915 | 236 307 372 Remotely . | . . . Salvage Created 778 | . 424 354 Parts 71 | . 35 36 Haulers Intercepted 2 | . 2 . Recyclers Shooed . | . . . Parts Field Recycled . | . . . Retrieved Matter . | . . . Parts Self-Destructed . | . . . Prevented . | . . . Kills | -11 -10 -10 ------- Run | Yrd Mat Min Combat Hostiles Destroyed 21 | . 11 10 Guns 21 | . 11 10 Classes Destroyed 6 | . 4 2 Worker 2 | . 1 1 Builder 2 | . . 2 Tunneler 1 | . . 1 Hauler 2 | . 2 . Swarmer 12 | . 6 6 Grunt 9 | . 5 4 Best Kill Streak 5 | . 3 5 Combat Bots Only 3 | . 3 3 Max Kills in Single Turn 2 | . 2 2 Gunslinging 1 | . 1 . Exploded . | . . . Melee . | . . . Uniques/NPCs Destroyed . | . . . Combat | -11 -10 -10 -------- Run | Yrd Mat Min Hostile Shots Fired 111 | . 32 79 Missed 30 | . 3 27 Hits 81 | . 29 52 Projectile 81 | . 29 52 AOE 14 | . . 14 Critical Strikes 1 | . . 1 Damage Taken 1183 | . 352 831 Core 263 | . 46 217 Absorbed by Shields . | . . . Core Remaining (%) 100 | 100 . . Volleys Fired 81 | . 37 44 Largest 2 | . 2 2 Hottest 40 | . 40 40 Shots Fired 160 | . 77 83 Gun 160 | . 77 83 Cannon . | . . . Launcher . | . . . Special . | . . . Kinetic 160 | . 77 83 Thermal . | . . . Explosive . | . . . Electromagnetic . | . . . Robot Hit Streak 17 | . 9 17 Robot Miss Streak 4 | . 4 2 Penetration Max . | . . . Secondary Targets 4 | . 1 3 Max Gunslinging Chain 1 | . 1 1 Shots Hit Robots 104 | . 46 58 Core Hits 47 | . 22 25 Critical Kills . | . . . Critical Parts Destroyed 2 | . . 2 Critical Strikes 2 | . . 2 Destroy 2 | . . 2 Melee Attacks . | . . . Impact . | . . . Slashing . | . . . Piercing . | . . . Sneak Attacks . | . . . Combat Hostiles . | . . . Follow-up Attacks . | . . . Damage Inflicted 1123 | . 579 544 Guns 1121 | . 579 542 Cannons . | . . . Explosions . | . . . Melee . | . . . Ramming 2 | . . 2 Kinetic 1121 | . 579 542 Thermal . | . . . Explosive . | . . . Electromagnetic . | . . . Impact . | . . . Slashing . | . . . Piercing . | . . . Highest Corruption 5 | . 5 5 Average Corruption 4 | . 4 5 Corruption Purged . | . . . Corruption Blocked . | . . . Effects 58 | . 26 32 Message Errors 11 | . 4 7 Matter Fused 18 | . 10 8 Heat Flow Errors 8 | . 4 4 Energy Discharges 1 | . 1 . Parts Fused 1 | . . 1 Data Loss (minor) 11 | . 3 8 Data Loss (major) 1 | . . 1 Misfires 3 | . 3 . Alerts 2 | . 1 1 Weapon Failures 2 | . . 2 Overload Shots . | . . . Overflow Damage . | . . . Projectiles . | . . . Explosions . | . . . Melee . | . . . Knockbacks . | . . . Impact . | . . . Kinetic . | . . . Secondary . | . . . Self-Inflicted Damage . | . . . Shots . | . . . Rammed 1 | . . 1 Targets Rammed 1 | . . 1 Kicked . | . . . Crushed . | . . . Highest Temperature 216 | . 196 216 Average Temperature 59 | . 63 56 Received Heat Transfer 336 | . 138 198 Siege Activations . | . . . Martial Activations . | . . . Shielding Activations . | . . . Robots Disrupted . | . . . Combat Hostiles . | . . . Robots Corrupted . | . . . Combat Hostiles . | . . . Parts Fried . | . . . Impact Corruptions . | . . . Robots Melted . | . . . Combat Hostiles . | . . . Parts Melted . | . . . Heat Transferred . | . . . Parts Sabotaged . | . . . Parts Stolen . | . . . Parts Stripped . | . . . Power Chain Reactions . | . . . Alert | -11 -10 -10 ------- Run | Yrd Mat Min Maximum Alert Level . | . . . Low Security (%) 100 | 100 100 100 Level 1 . | . . . Level 2 . | . . . Level 3 . | . . . Level 4 . | . . . Level 5 . | . . . High Security . | . . . Max Security . | . . . Peak Influence 124 | . 124 100 Initial 4 | . . 4 Average 26 | . 38 17 Influence Increases 629 | . 362 267 Destroy 0b10 Robot/C 420 | . 220 200 Destroy 0b10 Robot/NC 35 | . 15 20 Destroy Leader 94 | . 54 40 Successful Hack 49 | . 42 7 Select Force Hacks 30 | . 30 . Destroy Structure 1 | . 1 . Influence Decreases 629 | . 351 278 Entered New Map 7 | . . 7 Time Decay 568 | . 341 227 Lost Part 54 | . 10 44 Squads Dispatched 2 | . 2 . Investigation 1 | . 1 . Extermination . | . . . Reinforcement 1 | . 1 . Assault . | . . . Garrison . | . . . Intercept . | . . . Searches Triggered . | . . . Construction Impeded . | . . . Haulers Reinforced . | . . . Active Scanning Responses . | . . . Cargo Convoy Interrupts . | . . . Stealth | -11 -10 -10 --------- Run | Yrd Mat Min Distress Signals 1 | . 1 . Communications Jammed . | . . . Distress Signals . | . . . Times Spotted 32 | . 21 11 Peak Tracking Total 5 | . 5 3 Tactical Retreats . | . . . Traps | -11 -10 -10 ------- Run | Yrd Mat Min Traps Triggered 4 | . 4 . Indirectly . | . . . Trap Hack Attempts . | . . . Triggered . | . . . Disarmed . | . . . Reprogrammed . | . . . Reused . | . . . Traps Extracted . | . . . Installed . | . . . Triggered . | . . . Machines | -11 -10 -10 ---------- Run | Yrd Mat Min Machines Disabled . | . . . Max in Single Turn . | . . . Machines Repaired . | . . . Machines Dismantled . | . . . Machines Sabotaged . | . . . Overloaded Fab Kills . | . . . Hacking | -11 -10 -10 --------- Run | Yrd Mat Min Machines Accessed 8 | . 7 1 Terminals 7 | . 6 1 Fabricators . | . . . Repair Stations . | . . . Recycling Units 1 | . 1 . Scanalyzers . | . . . Garrison Access . | . . . Total Hacks 17 | . 15 2 Successful 10 | . 9 1 Failed 7 | . 6 1 Catastrophic . | . . . Database Lockouts . | . . . Manual 15 | . 13 2 Terminals 16 | . 14 2 Fabricators . | . . . Repair Stations . | . . . Recycling Units 1 | . 1 . Scanalyzers . | . . . Garrison Access . | . . . Terminal Hacks 2 | . 1 1 Part Schematic 1 | . . 1 Terminal Index 1 | . 1 . Fabricator Hacks . | . . . Repair Station Hacks . | . . . Recycling Unit Hacks . | . . . Scanalyzer . | . . . Garrison Access Hacks . | . . . Unauthorized Hacks 8 | . 8 . Terminals 7 | . 7 . Botnet 2 | . 2 . Skim 5 | . 5 . Fabricators . | . . . Repair Stations . | . . . Recycling Units 1 | . 1 . Tunnel 1 | . 1 . Scanalyzers . | . . . Garrison Access . | . . . Data Cores Recovered . | . . . Used . | . . . Hacking Detections 5 | . 5 . Full Trace Events . | . . . Feedback Events . | . . . Feedback Blocked . | . . . Robot Schematics Acquired . | . . . Robots Built . | . . . Authchips . | . . . Time . | . . . Total Robot Build Rating . | . . . Part Schematics Acquired 1 | . . 1 Parts Built . | . . . Authchips . | . . . Time . | . . . Total Part Build Rating . | . . . Parts Repaired . | . . . Time . | . . . Parts Recycled . | . . . Recycled Matter . | . . . Retrieved Matter . | . . . Retrieved Components . | . . . Parts Scanalyzed . | . . . Part Schematics Acquired . | . . . Parts Damaged . | . . . Bothacking | -11 -10 -10 ------------ Run | Yrd Mat Min Used RIF Installer . | . . . Robots Hacked . | . . . Non-combat . | . . . Combat . | . . . Robot Hacks Applied . | . . . Relay Couplers Released . | . . . Fabnet Peak Effective % . | . . . Robots Rewired . | . . . Allies Hacked . | . . . Hacks Repelled . | . . . Allies | -11 -10 -10 -------- Run | Yrd Mat Min Total Allies . | . . . Largest Group . | . . . Highest-Rated Group . | . . . Highest-Rated Ally . | . . . Total Orders . | . . . Ally Attacks . | . . . Total Damage . | . . . Kills . | . . . Allies Corrupted . | . . . Allies Melted . | . . . Intel | -11 -10 -10 ------- Run | Yrd Mat Min Active Infowar (turns) 519 | . . 519 Terrain 519 | . . 519 Robot Analysis Total . | . . . Derelict Logs Recovered 1 | . . 1 Drone Launches . | . . . Drone Recoveries . | . . . Exploration | -11 -10 -10 ------------- Run | Yrd Mat Min Turns Passed 2696 | 80 1206 1410 Spaces Moved 1141 | 45 477 619 Core 2 | 2 . . Treads 446 | 43 186 217 Legs . | . . . Wheels 693 | . 291 402 Hover . | . . . Flight . | . . . Fastest Speed 50 | 50 140 140 Average Speed 198 | 155 196 203 Slowest Speed 320 | 160 320 320 Overloaded Moves . | . . . Propulsion Burnouts . | . . . Robots Hopped . | . . . Potential Cave-ins . | . . . Cave-ins Triggered . | . . . Exploration Rate (%) 58 | 5 93 76 Regions Visited 2 Branch Regions 1 Pre-discovered Areas 1 | . 1 . Known Exits Taken . | . . . Unknown Exits Taken 2 | 1 1 . Scrap Searched 1 | . . 1 Spaces Dug . | . . . Terrain Destroyed . | . . . Melee . | . . . Projectile . | . . . AOE . | . . . Terrain Rammed . | . . . Walls Destroyed . | . . . Machines Disabled . | . . . Actions | -11 -10 -10 --------- Run | Yrd Mat Min Total 1421 | 52 673 696 Wait 149 | . 140 9 Move 1139 | 44 476 619 Hop . | . . . Pick Up 26 | 2 14 10 Fast Attach 8 | 5 1 2 Attach 9 | . 2 7 Detach 1 | . 1 . Swap 6 | 1 2 3 Drop 1 | . . 1 Fire 81 | . 37 44 Melee . | . . . Ram . | . . . Kick . | . . . Crush 1 | . . 1 Escape Stasis . | . . . Rewire . | . . . Trap . | . . . Miscellaneous . | . . . Route ------- -11/Scrapyard -10/Materials (discovered 5 exits: *Mat x3 / *Min / Sub) -10/Mines (discovered 3 exits: *Mat x2 / *Sub) History --------- Turn | Location | Event 26 | -11/Scrapyard | Discovered new exit (range 16) 81 | -11/Scrapyard | Entered Materials 313 | -10/Materials | Build established: Mutant 688 | -10/Materials | Discovered new exit (range 10) 780 | -10/Materials | Discovered new exit (range 7) 908 | -10/Materials | Discovered new exit (range 16) 1018 | -10/Materials | Identified exit to Subcaves 1074 | -10/Materials | Learned 2 Storage zone layouts 1121 | -10/Materials | Identified exit to Materials 1121 | -10/Materials | Learned location of 2 exits from Materials 1260 | -10/Materials | Learned location of 3 exits from Materials 1287 | -10/Materials | Entered Mines 1322 | -10/Mines | Met a Derelict bent on vengeance 1329 | -10/Mines | Discovered exit to Materials (range 9) 1511 | -10/Mines | Learned Materials stockpile data 1693 | -10/Mines | Found a hidden stash of uninstalled traps 2110 | -10/Mines | Discovered exit to Materials (range 9) 2194 | -10/Mines | Core integrity fell below 50% 2230 | -10/Mines | Lost 4 parts (1p1n2w) 2343 | -10/Mines | Found DCF Scrap (11 items) 2387 | -10/Mines | Found a damaged Exp. Sensor Array with a note attached 2390 | -10/Mines | Found Prototype Device 2691 | -10/Mines | Core integrity fell below 20% 2697 | -10/Mines | Destroyed by YI-UF0 with YI-UF0's Doublenader Last Messages --------------- 02530_ ZG-6R9(g): "VENGEANCE!" 02589_ ZG-6R9(g): "I WILL HAVE VENGEANCE!" 02595_ System corrupted: Component data lost. 02599_ U-05 Engineer suffers critical hit (Destroy). 02599_ Destroyed Wheel. 02615_ M8TIJ#NB,FRAWYZJQI% LGR 02635_ 3PAO2D 1FBA K2EA/XG 02653_ System corrupted: Component data lost. 02668_ System corrupted: Substantial component data lost. 02675_ YI-UF0 mumbles something. 02675_ Wheel destroyed. 02681_ The unstable cave ceiling collapses. 02686_ Wheel destroyed. 02687_ YI-UF0 mumbles something. 02687_ The unstable cave ceiling collapses. 02688_ Lgt. Treads destroyed. 02689_ The unstable cave ceiling collapses. 02694_ System corrupted: Lgt. Assault Rifle jammed. 02694_ Destroyed Shock Absorption System. 02695_ The unstable cave ceiling collapses. Map ----- +----------------------------------------------------+ | ???????????????????????????????#?????????????????? | | ?????????????????#??????#??????????#????????#??#?# | | ?????????????????????????????????????????#??????#? | | ??????????????????????##???###???????????????#???? | | ??????????????????????????## ####???????####?????? | | ???????????????????????#### #??????## ?????? | | ???????????????? ???#### #?????## ??????? | | ???????????????????## ###?#????# ?? ???? | | ?????????????????# # % #???????# #???? ?? | | ?????????????????# = ###????## #??#???? | | ?????????????????# [ ##??#?#* #????#?# | | ???????????# * ## *! ##??## !#??##??? | | ??????????? [ ### # ## #####!%### #??# | | ???????????## # ## *[!## #?#? | | ??????????? # #### ?## == #?#? | | ??????????? ??# ????? # [ ##?# ## ###??# | | ????????????? ??????# #%[ ##?## ########????? | | ???????????? ????????# = #???# # #??????????#? | | ?????????????????????? # # #?????# ###??????##?? | | ?????????????????#???? g ###?????# #?#?????#?# | | ??????????????????????## #??????### #???#?????? | | ????????????????#????## ##???????# #?????#???? | | ?????????????????????# ###??#??# ###???#???? | | ???????????????????### #####??# #?#???????# | | ????????????????????# # #??# ##########? | | ????????????????????# @ """ #??# !%*= #?# | | ????????????????????# "" #??######### ### | | ???????????????????# " " #####????#?# ## | | ????????????#?????# #???????# ## | | ??????????????????# ## #?????#?# ### | | ??????????????????# #### #????#### #?# | | ??????????????????## #??# #???????# #?? | | ???????????????????# ###?## ######### ### | | ???????????????#???###### #??## | | ???????####??????????????######### | | ??????## &##??????????????????## ### ######### | | ?????## & #???#?????#????????# ##?# #?#????## | | ?????# &#????#?????????????## ##??# #????### | | ?????# ##???????????????##??### #?#?# #??#???# | | ????## ##???????????#?#???????# #???# #????#### | | ????# ###??????######???????# ##### #???????# | | ????# ##????## ##???#?#?# #???# #???????# | | ???## ###### ######??# #???# ###?????? | | ??## #??# #???# ##????# | | ?## #### #???### #??#??# | | ## ### ## #?#???# #???# | | # #####?## ## ## ###?????# #???# | | ######### ### ### #???????# #?### | | #?# #?#### ###?# #??????## #???## | | # ##?# ##### ###??#### ##???# #???????# #?#??## | +----------------------------------------------------+ Best States ------------- Heat Dissipation 25 Energy Generation 10 Energy Capacity 250 Matter Stores 300 Matter Capacity 300 Sight Range 16 Terrain Scan Range 16 Terrain Scan Density 10 Evasion (%) 40 Recoil Reduction 2 Item Schematics ----------------- Hcp. Storage Unit | -10/Mines | Hacked Robot Schematics ------------------ None Fabricated ------------ Nothing Repaired ---------- Nothing Alien Tech Used ----------------- None Achievements -------------- None Challenges ------------ None Game ------ Seed DiametricRefineryPod Manual? 0 Play Time 00:14:24 Cumulative 196.1 hours Start 2025.09.13 @ 22:42:46 End 2025.09.13 @ 22:52:45 Sessions 1 Manual Loads 0 Difficulty Rogue Special Mode None Game No. 94 Rogue 94 Adventurer 0 Explorer 0 Win Type - Total 18 Types 6/2/4/1/1/0/0/1/1/2 Lore% 74 Gallery% 72 Achievement% 67 Wizard Run 0 Options --------- Layout 0 ASCII 0 Keyboard 1 Movement Vi Keybinds 0 Fullscreen 2 Font 18/SmallcapsGlow Map View 76x50 Zoom Use 0% Tactical HUD 1 Map Filters NONE Filters NONE Steam 1 RUN: 2e0ecaeb-edf9-43df-8d40-fb9c0ff0b071